[Event "Titled Tuesday Blitz March 15 Early 2022"]
[White "P., Komal Kishore"]
[Black "Fiorito, Fabian"]
[WhiteFideId "5016703"]
[BlackFideId "100200"]
[WhiteElo "2122"]
[BlackElo "2395"]
[Result "0-1"]
[Round "06"]
[TimeControl "180+1"]
[Date "2022.03.15"]
[WhiteClock "0:00:01"]
[BlackClock "0:00:08"]

1. e4 {[%clk 0:03:00]}  c6 {[%clk 0:02:59]} 2. d4 {[%clk 0:03:00]}  d5 {[%clk 0:03:00]} 3. exd5 {[%clk 0:02:59]}  cxd5 {[%clk 0:03:00]} 4. c4 {[%clk 0:02:59]}  Nc6 {[%clk 0:02:59]} 5. Nc3 {[%clk 0:02:59]}  Nf6 {[%clk 0:02:59]} 6. Nf3 {[%clk 0:02:56]}  e6 {[%clk 0:02:59]} 7. Bf4 {[%clk 0:02:50]}  Bb4 {[%clk 0:02:59]} 8. Be2 {[%clk 0:02:48]}  O-O {[%clk 0:02:57]} 9. O-O {[%clk 0:02:46]}  dxc4 {[%clk 0:02:57]} 10. Bxc4 {[%clk 0:02:45]}  Ne7 {[%clk 0:02:52]} 11. a3 {[%clk 0:02:40]}  Bxc3 {[%clk 0:02:51]} 12. bxc3 {[%clk 0:02:41]}  b6 {[%clk 0:02:49]} 13. Qd3 {[%clk 0:02:30]}  Bb7 {[%clk 0:02:48]} 14. Ne5 {[%clk 0:02:27]}  Ng6 {[%clk 0:02:46]} 15. Bg5 {[%clk 0:02:11]}  Nxe5 {[%clk 0:02:08]} 16. dxe5 {[%clk 0:02:08]}  Qxd3 {[%clk 0:02:06]} 17. Bxd3 {[%clk 0:02:06]}  Nd7 {[%clk 0:02:06]} 18. Be7 {[%clk 0:02:03]}  Rfe8 {[%clk 0:01:59]} 19. Bd6 {[%clk 0:02:02]}  Rac8 {[%clk 0:01:58]} 20. Bb5 {[%clk 0:01:56]}  Bc6 {[%clk 0:01:57]} 21. Ba6 {[%clk 0:01:55]}  Ra8 {[%clk 0:01:53]} 22. Rfd1 {[%clk 0:01:44]}  f6 {[%clk 0:01:36]} 23. f4 {[%clk 0:01:42]}  Kf7 {[%clk 0:01:33]} 24. a4 {[%clk 0:01:40]}  g5 {[%clk 0:01:29]} 25. fxg5 {[%clk 0:01:31]}  fxe5 {[%clk 0:01:15]} 26. a5 {[%clk 0:01:29]}  Rg8 {[%clk 0:01:07]} 27. axb6 {[%clk 0:01:21]}  Nxb6 {[%clk 0:00:58]} 28. Bd3 {[%clk 0:01:17]}  Rxg5 {[%clk 0:00:54]} 29. g3 {[%clk 0:01:15]}  h5 {[%clk 0:00:49]} 30. Rf1+ {[%clk 0:01:00]}  Kg7 {[%clk 0:00:48]} 31. Rfe1 {[%clk 0:00:55]}  Nd7 {[%clk 0:00:46]} 32. Kf2 {[%clk 0:00:44]}  h4 {[%clk 0:00:43]} 33. Ra5 {[%clk 0:00:34]}  hxg3+ {[%clk 0:00:39]} 34. hxg3 {[%clk 0:00:33]}  Rh8 {[%clk 0:00:35]} 35. Rxa7 {[%clk 0:00:32]}  Rh2+ {[%clk 0:00:32]} 36. Kg1 {[%clk 0:00:22]}  Rg2+ {[%clk 0:00:32]} 37. Kf1 {[%clk 0:00:21]}  Kf6 {[%clk 0:00:12]} 38. Rc7 {[%clk 0:00:16]}  R2xg3 {[%clk 0:00:09]} 39. Rxc6 {[%clk 0:00:14]}  Rxd3 {[%clk 0:00:09]} 40. Bc7 {[%clk 0:00:12]}  Rf5+ {[%clk 0:00:09]} 41. Ke2 {[%clk 0:00:11]}  Rd5 {[%clk 0:00:10]} 42. Bd8+ {[%clk 0:00:10]}  Kf7 {[%clk 0:00:10]} 43. Rf1 {[%clk 0:00:09]}  e4 {[%clk 0:00:08]} 44. Rh1 {[%clk 0:00:06]}  Ne5 {[%clk 0:00:07]} 45. Rc7+ {[%clk 0:00:04]}  Rd7 {[%clk 0:00:08]} 46. Rxd7+ {[%clk 0:00:03]}  Nxd7 {[%clk 0:00:09]} 47. Rh7+ {[%clk 0:00:03]}  Ke8 {[%clk 0:00:09]} 48. Bh4 {[%clk 0:00:02]}  Ne5 {[%clk 0:00:09]} 49. Re7+ {[%clk 0:00:01]}  Kf8 {[%clk 0:00:09]} 50. Rxe6 {[%clk 0:00:02]}  Rh5 {[%clk 0:00:08]} 51. Bf2 {[%clk 0:00:01]}  Kf7 {[%clk 0:00:08]} 52. Rc6 {[%clk 0:00:01]}  Nxc6 {[%clk 0:00:08]} 0-1


[Site "https://www.chess.com"]

[Event "Titled Tuesday Blitz March 15 Early 2022"]
[White "Pajeken, Jakob Leon"]
[Black "Srihari L R"]
[WhiteFideId "12942839"]
[BlackFideId "46617116"]
[WhiteElo "2351"]
[BlackElo "2121"]
[Result "0-1"]
[Round "06"]
[TimeControl "180+1"]
[Date "2022.03.15"]
[WhiteClock "0:00:03"]
[BlackClock "0:01:41"]

1. d4 {[%clk 0:02:58]}  c5 {[%clk 0:02:56]} 2. d5 {[%clk 0:02:56]}  e5 {[%clk 0:02:55]} 3. e4 {[%clk 0:02:52]}  d6 {[%clk 0:02:55]} 4. Bb5+ {[%clk 0:02:48]}  Nd7 {[%clk 0:02:54]} 5. a4 {[%clk 0:02:46]}  g6 {[%clk 0:02:54]} 6. Na3 {[%clk 0:02:33]}  a6 {[%clk 0:02:45]} 7. Be2 {[%clk 0:02:31]}  Ngf6 {[%clk 0:02:44]} 8. f3 {[%clk 0:02:17]}  Be7 {[%clk 0:02:38]} 9. Bh6 {[%clk 0:02:13]}  Bf8 {[%clk 0:02:36]} 10. Bd2 {[%clk 0:02:11]}  Nh5 {[%clk 0:02:33]} 11. g3 {[%clk 0:01:58]}  Be7 {[%clk 0:02:33]} 12. Bh6 {[%clk 0:01:55]}  Bg5 {[%clk 0:02:27]} 13. Bxg5 {[%clk 0:01:44]}  Qxg5 {[%clk 0:02:28]} 14. Nc4 {[%clk 0:01:44]}  Ke7 {[%clk 0:02:27]} 15. Nh3 {[%clk 0:01:35]}  Qh6 {[%clk 0:02:23]} 16. Kf2 {[%clk 0:01:29]}  f5 {[%clk 0:02:21]} 17. Qc1 {[%clk 0:01:18]}  f4 {[%clk 0:02:19]} 18. g4 {[%clk 0:01:18]}  Ng7 {[%clk 0:02:12]} 19. Kg2 {[%clk 0:01:15]}  g5 {[%clk 0:02:12]} 20. Nf2 {[%clk 0:01:12]}  Qf6 {[%clk 0:02:10]} 21. a5 {[%clk 0:01:05]}  h5 {[%clk 0:02:09]} 22. h3 {[%clk 0:01:05]}  Nf8 {[%clk 0:02:09]} 23. Nb6 {[%clk 0:00:58]}  Rb8 {[%clk 0:02:09]} 24. b4 {[%clk 0:00:55]}  cxb4 {[%clk 0:02:08]} 25. c3 {[%clk 0:00:55]}  b3 {[%clk 0:02:07]} 26. Ra4 {[%clk 0:00:52]}  Nd7 {[%clk 0:02:06]} 27. Rc4 {[%clk 0:00:45]}  Nc5 {[%clk 0:02:01]} 28. Rd1 {[%clk 0:00:38]}  Bd7 {[%clk 0:02:00]} 29. Qa3 {[%clk 0:00:32]}  Rhc8 {[%clk 0:01:54]} 30. Nxc8+ {[%clk 0:00:27]}  Rxc8 {[%clk 0:01:54]} 31. Nd3 {[%clk 0:00:27]}  Bb5 {[%clk 0:01:48]} 32. Rb4 {[%clk 0:00:15]}  Bxd3 {[%clk 0:01:46]} 33. Bxd3 {[%clk 0:00:15]}  hxg4 {[%clk 0:01:44]} 34. hxg4 {[%clk 0:00:15]}  Rh8 {[%clk 0:01:42]} 35. Rxb3 {[%clk 0:00:15]}  Qh6 {[%clk 0:01:42]} 36. Bf1 {[%clk 0:00:03]}  Qh2# {[%clk 0:01:41]} 0-1


[Site "https://www.chess.com"]

[Event "Titled Tuesday Blitz March 15 Early 2022"]
[White "Pakleza, Zbigniew"]
[Black "Jaferian, Koosha"]
[WhiteFideId "1119290"]
[BlackFideId "12507440"]
[WhiteElo "2467"]
[BlackElo "2030"]
[Result "0-1"]
[Round "06"]
[TimeControl "180+1"]
[Date "2022.03.15"]
[WhiteClock "0:00:48"]
[BlackClock "0:00:52"]

1. f3 {[%clk 0:03:00]}  g6 {[%clk 0:02:56]} 2. e3 {[%clk 0:03:00]}  Bg7 {[%clk 0:02:56]} 3. d3 {[%clk 0:03:01]}  c5 {[%clk 0:02:56]} 4. c3 {[%clk 0:03:01]}  d5 {[%clk 0:02:57]} 5. b3 {[%clk 0:03:01]}  Nc6 {[%clk 0:02:57]} 6. g3 {[%clk 0:03:01]}  h5 {[%clk 0:02:57]} 7. h3 {[%clk 0:03:01]}  h4 {[%clk 0:02:57]} 8. g4 {[%clk 0:03:02]}  e5 {[%clk 0:02:58]} 9. a3 {[%clk 0:03:02]}  e4 {[%clk 0:02:55]} 10. dxe4 {[%clk 0:03:00]}  dxe4 {[%clk 0:02:55]} 11. Qxd8+ {[%clk 0:03:00]}  Kxd8 {[%clk 0:02:56]} 12. f4 {[%clk 0:02:44]}  Be6 {[%clk 0:02:56]} 13. Bb2 {[%clk 0:02:17]}  Bxb3 {[%clk 0:02:54]} 14. Nd2 {[%clk 0:02:17]}  Bc2 {[%clk 0:02:20]} 15. Rh2 {[%clk 0:02:17]}  Kc7 {[%clk 0:02:10]} 16. Nc4 {[%clk 0:02:08]}  Bd3 {[%clk 0:02:10]} 17. Bxd3 {[%clk 0:02:07]}  exd3 {[%clk 0:02:10]} 18. O-O-O {[%clk 0:02:08]}  b5 {[%clk 0:02:08]} 19. Nd2 {[%clk 0:01:49]}  c4 {[%clk 0:02:08]} 20. a4 {[%clk 0:01:49]}  a6 {[%clk 0:02:08]} 21. Ngf3 {[%clk 0:01:49]}  Nf6 {[%clk 0:01:58]} 22. e4 {[%clk 0:01:39]}  Rhe8 {[%clk 0:01:57]} 23. Re1 {[%clk 0:01:36]}  Nd7 {[%clk 0:01:44]} 24. Nxh4 {[%clk 0:01:20]}  Nc5 {[%clk 0:01:44]} 25. axb5 {[%clk 0:01:20]}  axb5 {[%clk 0:01:45]} 26. Nhf3 {[%clk 0:01:20]}  Ra2 {[%clk 0:01:31]} 27. e5 {[%clk 0:01:18]}  Na4 {[%clk 0:01:26]} 28. Ne4 {[%clk 0:01:13]}  Bf8 {[%clk 0:01:12]} 29. Kb1 {[%clk 0:01:13]}  Ra8 {[%clk 0:01:03]} 30. Nd6 {[%clk 0:00:56]}  Nxb2 {[%clk 0:00:55]} 31. Nxb5+ {[%clk 0:00:48]}  Kb6 {[%clk 0:00:56]} 32. Nfd4 {[%clk 0:00:48]}  Ra1+ {[%clk 0:00:52]} 0-1


[Site "https://www.chess.com"]

[Event "Titled Tuesday Blitz March 15 Early 2022"]
[White "Paravyan, David"]
[Black "Kosteniuk, Alexandra"]
[WhiteFideId "4194985"]
[BlackFideId "4128125"]
[WhiteElo "2569"]
[BlackElo "2469"]
[Result "0-1"]
[Round "06"]
[TimeControl "180+1"]
[Date "2022.03.15"]
[WhiteClock "0:00:09"]
[BlackClock "0:00:20"]

1. e4 {[%clk 0:02:26]}  e5 {[%clk 0:03:00]} 2. Nf3 {[%clk 0:02:26]}  Nc6 {[%clk 0:03:00]} 3. Nc3 {[%clk 0:02:26]}  Nf6 {[%clk 0:03:01]} 4. d4 {[%clk 0:02:27]}  exd4 {[%clk 0:03:01]} 5. Nxd4 {[%clk 0:02:28]}  Bb4 {[%clk 0:03:01]} 6. Nxc6 {[%clk 0:02:28]}  bxc6 {[%clk 0:03:02]} 7. Bd3 {[%clk 0:02:28]}  O-O {[%clk 0:03:02]} 8. O-O {[%clk 0:02:29]}  d5 {[%clk 0:03:02]} 9. exd5 {[%clk 0:02:30]}  cxd5 {[%clk 0:03:03]} 10. Bg5 {[%clk 0:02:30]}  Rb8 {[%clk 0:02:54]} 11. Bxf6 {[%clk 0:02:25]}  Qxf6 {[%clk 0:02:54]} 12. Nxd5 {[%clk 0:02:26]}  Qg5 {[%clk 0:02:54]} 13. Kh1 {[%clk 0:01:17]}  Bd6 {[%clk 0:02:34]} 14. f4 {[%clk 0:01:05]}  Qh4 {[%clk 0:02:34]} 15. b3 {[%clk 0:00:49]}  Bb7 {[%clk 0:02:32]} 16. Qf3 {[%clk 0:00:15]}  Bxd5 {[%clk 0:01:40]} 17. Qxd5 {[%clk 0:00:16]}  Bxf4 {[%clk 0:01:40]} 18. Bxh7+ {[%clk 0:00:15]}  Kh8 {[%clk 0:01:40]} 19. h3 {[%clk 0:00:12]}  Qg3 {[%clk 0:01:36]} 20. Rxf4 {[%clk 0:00:13]}  Qxf4 {[%clk 0:01:37]} 21. Bd3 {[%clk 0:00:12]}  g6 {[%clk 0:01:33]} 22. Rf1 {[%clk 0:00:11]}  Qd6 {[%clk 0:01:32]} 23. Qxd6 {[%clk 0:00:11]}  cxd6 {[%clk 0:01:32]} 24. Rf4 {[%clk 0:00:12]}  Kg7 {[%clk 0:01:30]} 25. Kh2 {[%clk 0:00:09]}  f5 {[%clk 0:01:26]} 26. Ra4 {[%clk 0:00:09]}  Rb7 {[%clk 0:01:26]} 27. h4 {[%clk 0:00:08]}  Kf6 {[%clk 0:01:24]} 28. Kg3 {[%clk 0:00:08]}  Re8 {[%clk 0:01:19]} 29. Kf3 {[%clk 0:00:08]}  Re5 {[%clk 0:01:08]} 30. Ra6 {[%clk 0:00:07]}  Ke7 {[%clk 0:01:05]} 31. a4 {[%clk 0:00:04]}  Rc5 {[%clk 0:01:02]} 32. g3 {[%clk 0:00:04]}  Rcc7 {[%clk 0:00:59]} 33. Ra5 {[%clk 0:00:03]}  Rb4 {[%clk 0:00:59]} 34. h5 {[%clk 0:00:03]}  gxh5 {[%clk 0:00:56]} 35. Rxf5 {[%clk 0:00:04]}  Rc5 {[%clk 0:00:56]} 36. Rf4 {[%clk 0:00:01]}  Rxf4+ {[%clk 0:00:54]} 37. Kxf4 {[%clk 0:00:02]}  Kf6 {[%clk 0:00:51]} 38. b4 {[%clk 0:00:02]}  Rg5 {[%clk 0:00:46]} 39. a5 {[%clk 0:00:01]}  Rg4+ {[%clk 0:00:45]} 40. Kf3 {[%clk 0:00:01]}  Rxb4 {[%clk 0:00:46]} 41. a6 {[%clk 0:00:02]}  Ke5 {[%clk 0:00:43]} 42. Ke3 {[%clk 0:00:02]}  Rg4 {[%clk 0:00:42]} 43. Kf2 {[%clk 0:00:02]}  d5 {[%clk 0:00:42]} 44. Be2 {[%clk 0:00:02]}  Rg5 {[%clk 0:00:42]} 45. Bd3 {[%clk 0:00:01]}  d4 {[%clk 0:00:37]} 46. Kf3 {[%clk 0:00:02]}  Rg7 {[%clk 0:00:36]} 47. Kf2 {[%clk 0:00:02]}  Rf7+ {[%clk 0:00:36]} 48. Kg2 {[%clk 0:00:02]}  Rg7 {[%clk 0:00:29]} 49. Kh3 {[%clk 0:00:01]}  Rg4 {[%clk 0:00:28]} 50. Be2 {[%clk 0:00:02]}  Re4 {[%clk 0:00:22]} 51. Bxh5 {[%clk 0:00:02]}  Re1 {[%clk 0:00:22]} 52. Bg6 {[%clk 0:00:03]}  Kf6 {[%clk 0:00:16]} 53. Bd3 {[%clk 0:00:03]}  Kg5 {[%clk 0:00:17]} 54. Bc4 {[%clk 0:00:02]}  Re3 {[%clk 0:00:17]} 55. Bd3 {[%clk 0:00:02]}  Rf3 {[%clk 0:00:17]} 56. Kg2 {[%clk 0:00:02]}  Re3 {[%clk 0:00:17]} 57. Kf2 {[%clk 0:00:03]}  Kg4 {[%clk 0:00:16]} 58. Be2+ {[%clk 0:00:04]}  Kh3 {[%clk 0:00:17]} 59. Bf1+ {[%clk 0:00:05]}  Kg4 {[%clk 0:00:17]} 60. Be2+ {[%clk 0:00:04]}  Kf5 {[%clk 0:00:17]} 61. Bd3+ {[%clk 0:00:05]}  Ke5 {[%clk 0:00:18]} 62. Kg2 {[%clk 0:00:05]}  Kd5 {[%clk 0:00:17]} 63. Kf2 {[%clk 0:00:05]}  Kc5 {[%clk 0:00:17]} 64. Kg2 {[%clk 0:00:06]}  Kb4 {[%clk 0:00:17]} 65. Kh3 {[%clk 0:00:05]}  Kc3 {[%clk 0:00:17]} 66. Kh4 {[%clk 0:00:06]}  Rxd3 {[%clk 0:00:17]} 67. cxd3 {[%clk 0:00:06]}  Kxd3 {[%clk 0:00:18]} 68. g4 {[%clk 0:00:07]}  Ke3 {[%clk 0:00:18]} 69. g5 {[%clk 0:00:07]}  d3 {[%clk 0:00:18]} 70. g6 {[%clk 0:00:07]}  d2 {[%clk 0:00:19]} 71. g7 {[%clk 0:00:08]}  d1=Q {[%clk 0:00:20]} 72. g8=Q {[%clk 0:00:09]}  Qh1+ {[%clk 0:00:20]} 0-1


[Site "https://www.chess.com"]

[Event "Titled Tuesday Blitz March 15 Early 2022"]
[White "Popadic, Dragan"]
[Black "Goryachkina, Aleksandra"]
[WhiteFideId "913650"]
[BlackFideId "4147103"]
[WhiteElo "2222"]
[BlackElo "2426"]
[Result "1/2-1/2"]
[Round "06"]
[TimeControl "180+1"]
[Date "2022.03.15"]
[WhiteClock "0:00:02"]
[BlackClock "0:00:04"]

1. e4 {[%clk 0:02:52]}  e6 {[%clk 0:02:59]} 2. Nf3 {[%clk 0:02:51]}  d5 {[%clk 0:02:59]} 3. e5 {[%clk 0:02:51]}  c5 {[%clk 0:03:00]} 4. b4 {[%clk 0:02:51]}  b6 {[%clk 0:02:59]} 5. a3 {[%clk 0:02:50]}  Bb7 {[%clk 0:02:43]} 6. c3 {[%clk 0:02:49]}  d4 {[%clk 0:02:35]} 7. Bb5+ {[%clk 0:02:35]}  Nd7 {[%clk 0:02:34]} 8. cxd4 {[%clk 0:02:33]}  a6 {[%clk 0:02:23]} 9. Bxd7+ {[%clk 0:02:30]}  Qxd7 {[%clk 0:02:23]} 10. dxc5 {[%clk 0:02:29]}  bxc5 {[%clk 0:02:24]} 11. bxc5 {[%clk 0:02:28]}  Bxc5 {[%clk 0:02:23]} 12. O-O {[%clk 0:02:25]}  Ne7 {[%clk 0:02:23]} 13. d4 {[%clk 0:02:24]}  Ba7 {[%clk 0:02:21]} 14. Be3 {[%clk 0:02:23]}  O-O {[%clk 0:02:18]} 15. Nbd2 {[%clk 0:02:23]}  Nf5 {[%clk 0:02:11]} 16. Nb3 {[%clk 0:02:01]}  Rac8 {[%clk 0:02:05]} 17. Rc1 {[%clk 0:01:58]}  Bd5 {[%clk 0:01:48]} 18. Nc5 {[%clk 0:01:55]}  Bxc5 {[%clk 0:01:46]} 19. dxc5 {[%clk 0:01:55]}  Nxe3 {[%clk 0:01:32]} 20. fxe3 {[%clk 0:01:55]}  Qe7 {[%clk 0:01:27]} 21. Qc2 {[%clk 0:01:34]}  Rc7 {[%clk 0:01:14]} 22. Nd4 {[%clk 0:01:31]}  Rfc8 {[%clk 0:01:12]} 23. c6 {[%clk 0:01:30]}  Qg5 {[%clk 0:01:07]} 24. e4 {[%clk 0:01:09]}  Qxe5 {[%clk 0:01:01]} 25. exd5 {[%clk 0:01:07]}  Qxd4+ {[%clk 0:01:01]} 26. Kh1 {[%clk 0:01:03]}  Qxd5 {[%clk 0:00:49]} 27. Rfd1 {[%clk 0:01:01]}  Qg5 {[%clk 0:00:48]} 28. Qe4 {[%clk 0:00:47]}  h6 {[%clk 0:00:43]} 29. h3 {[%clk 0:00:46]}  Qb5 {[%clk 0:00:40]} 30. a4 {[%clk 0:00:37]}  Qg5 {[%clk 0:00:37]} 31. Rc2 {[%clk 0:00:31]}  g6 {[%clk 0:00:29]} 32. Rdc1 {[%clk 0:00:29]}  Qf5 {[%clk 0:00:29]} 33. Qc4 {[%clk 0:00:28]}  a5 {[%clk 0:00:29]} 34. Qb5 {[%clk 0:00:27]}  Rd8 {[%clk 0:00:18]} 35. Rc5 {[%clk 0:00:26]}  Qf2 {[%clk 0:00:12]} 36. Qxa5 {[%clk 0:00:23]}  Rd2 {[%clk 0:00:12]} 37. Rg1 {[%clk 0:00:22]}  Rc8 {[%clk 0:00:10]} 38. c7 {[%clk 0:00:21]}  Rc2 {[%clk 0:00:07]} 39. Rxc2 {[%clk 0:00:19]}  Qxc2 {[%clk 0:00:07]} 40. Ra1 {[%clk 0:00:16]}  Qxc7 {[%clk 0:00:06]} 41. Qxc7 {[%clk 0:00:15]}  Rxc7 {[%clk 0:00:07]} 42. a5 {[%clk 0:00:15]}  Kf8 {[%clk 0:00:07]} 43. a6 {[%clk 0:00:15]}  Ra7 {[%clk 0:00:08]} 44. Kg1 {[%clk 0:00:15]}  Ke7 {[%clk 0:00:08]} 45. Kf2 {[%clk 0:00:15]}  Kd6 {[%clk 0:00:09]} 46. Ke3 {[%clk 0:00:15]}  Kc5 {[%clk 0:00:09]} 47. Ke4 {[%clk 0:00:15]}  Kb5 {[%clk 0:00:09]} 48. Ke5 {[%clk 0:00:15]}  Rxa6 {[%clk 0:00:09]} 49. Rb1+ {[%clk 0:00:15]}  Kc4 {[%clk 0:00:08]} 50. Kf6 {[%clk 0:00:15]}  Ra7 {[%clk 0:00:08]} 51. Rd1 {[%clk 0:00:14]}  Kc3 {[%clk 0:00:06]} 52. g4 {[%clk 0:00:14]}  Kc2 {[%clk 0:00:06]} 53. Rd8 {[%clk 0:00:13]}  Rc7 {[%clk 0:00:04]} 54. Rh8 {[%clk 0:00:12]}  h5 {[%clk 0:00:03]} 55. gxh5 {[%clk 0:00:11]}  gxh5 {[%clk 0:00:03]} 56. Rxh5 {[%clk 0:00:11]}  Kd3 {[%clk 0:00:04]} 57. Rg5 {[%clk 0:00:11]}  Kd4 {[%clk 0:00:04]} 58. h4 {[%clk 0:00:11]}  e5 {[%clk 0:00:02]} 59. Rxe5 {[%clk 0:00:08]}  Rc6+ {[%clk 0:00:02]} 60. Kf5 {[%clk 0:00:08]}  Rh6 {[%clk 0:00:02]} 61. Re4+ {[%clk 0:00:07]}  Kd5 {[%clk 0:00:02]} 62. Rg4 {[%clk 0:00:07]}  f6 {[%clk 0:00:02]} 63. Ra4 {[%clk 0:00:05]}  Kd6 {[%clk 0:00:02]} 64. Rd4+ {[%clk 0:00:04]}  Ke7 {[%clk 0:00:03]} 65. Rd1 {[%clk 0:00:04]}  Kf8 {[%clk 0:00:02]} 66. Rd4 {[%clk 0:00:04]}  Ke7 {[%clk 0:00:03]} 67. Re4+ {[%clk 0:00:04]}  Kf7 {[%clk 0:00:03]} 68. Ra4 {[%clk 0:00:04]}  Rh5+ {[%clk 0:00:03]} 69. Kg4 {[%clk 0:00:03]}  Kg6 {[%clk 0:00:03]} 70. Rb4 {[%clk 0:00:02]}  Re5 {[%clk 0:00:04]} 71. Rc4 {[%clk 0:00:02]}  Rd5 {[%clk 0:00:03]} 72. Rb4 {[%clk 0:00:02]}  Re5 {[%clk 0:00:03]} 73. Rc4 {[%clk 0:00:02]}  Rd5 {[%clk 0:00:03]} 74. Rb4 {[%clk 0:00:02]}  Re5 {[%clk 0:00:04]} 1/2-1/2


[Site "https://www.chess.com"]

[Event "Titled Tuesday Blitz March 15 Early 2022"]
[White "Shuvalova, Polina"]
[Black "Araujo Filho, Luiz Antonio Coel"]
[WhiteFideId "24171760"]
[BlackFideId "2130661"]
[WhiteElo "2355"]
[BlackElo "2201"]
[Result "1-0"]
[Round "06"]
[TimeControl "180+1"]
[Date "2022.03.15"]
[WhiteClock "0:00:30"]
[BlackClock "0:00:07"]

1. d4 {[%clk 0:02:56]}  f5 {[%clk 0:02:57]} 2. g3 {[%clk 0:02:54]}  Nf6 {[%clk 0:02:58]} 3. Bg2 {[%clk 0:02:52]}  g6 {[%clk 0:02:57]} 4. Nd2 {[%clk 0:02:51]}  Bg7 {[%clk 0:02:57]} 5. e4 {[%clk 0:02:52]}  fxe4 {[%clk 0:02:54]} 6. Nxe4 {[%clk 0:02:53]}  O-O {[%clk 0:02:54]} 7. Nxf6+ {[%clk 0:02:50]}  exf6 {[%clk 0:02:53]} 8. c4 {[%clk 0:02:48]}  d6 {[%clk 0:02:49]} 9. Ne2 {[%clk 0:02:46]}  Nc6 {[%clk 0:02:47]} 10. O-O {[%clk 0:02:45]}  f5 {[%clk 0:02:46]} 11. Be3 {[%clk 0:02:34]}  Kh8 {[%clk 0:02:40]} 12. Rc1 {[%clk 0:02:25]}  a6 {[%clk 0:02:31]} 13. Qd2 {[%clk 0:02:15]}  Re8 {[%clk 0:02:25]} 14. Rfe1 {[%clk 0:02:14]}  Bd7 {[%clk 0:02:22]} 15. b3 {[%clk 0:02:09]}  Qf6 {[%clk 0:02:18]} 16. Bg5 {[%clk 0:02:06]}  Qf7 {[%clk 0:02:18]} 17. h3 {[%clk 0:01:48]}  Rab8 {[%clk 0:01:48]} 18. d5 {[%clk 0:01:43]}  Nd8 {[%clk 0:01:30]} 19. Nd4 {[%clk 0:01:24]}  Be5 {[%clk 0:00:37]} 20. f4 {[%clk 0:01:20]}  Bf6 {[%clk 0:00:34]} 21. Rxe8+ {[%clk 0:01:17]}  Bxe8 {[%clk 0:00:34]} 22. Re1 {[%clk 0:01:12]}  Bd7 {[%clk 0:00:29]} 23. Qe3 {[%clk 0:01:04]}  Bxg5 {[%clk 0:00:24]} 24. fxg5 {[%clk 0:01:03]}  b5 {[%clk 0:00:19]} 25. cxb5 {[%clk 0:00:48]}  axb5 {[%clk 0:00:19]} 26. Qe7 {[%clk 0:00:46]}  Kg7 {[%clk 0:00:18]} 27. Qe3 {[%clk 0:00:34]}  b4 {[%clk 0:00:10]} 28. Ne6+ {[%clk 0:00:34]}  Bxe6 {[%clk 0:00:07]} 29. dxe6 {[%clk 0:00:35]}  Qe7 {[%clk 0:00:07]} 30. Qd4+ {[%clk 0:00:32]}  Kg8 {[%clk 0:00:07]} 31. Qf6 {[%clk 0:00:30]} 1-0


[Site "https://www.chess.com"]

[Event "Titled Tuesday Blitz March 15 Early 2022"]
[White "Tay, Junior"]
[Black "Slugin, Sergey"]
[WhiteFideId "5800439"]
[BlackFideId "4122569"]
[WhiteElo "2216"]
[BlackElo "2358"]
[Result "0-1"]
[Round "06"]
[TimeControl "180+1"]
[Date "2022.03.15"]
[WhiteClock "0:00:38"]
[BlackClock "0:00:12"]

1. e4 {[%clk 0:03:00]}  d5 {[%clk 0:02:19]} 2. exd5 {[%clk 0:02:59]}  Qxd5 {[%clk 0:02:20]} 3. Nc3 {[%clk 0:02:59]}  Qd8 {[%clk 0:02:21]} 4. Bc4 {[%clk 0:02:59]}  Nf6 {[%clk 0:02:21]} 5. Nf3 {[%clk 0:02:59]}  Bf5 {[%clk 0:02:18]} 6. Ne5 {[%clk 0:02:59]}  e6 {[%clk 0:02:19]} 7. g4 {[%clk 0:02:59]}  Qd4 {[%clk 0:02:01]} 8. Qe2 {[%clk 0:02:46]}  Nxg4 {[%clk 0:01:45]} 9. Nf3 {[%clk 0:02:36]}  Qd8 {[%clk 0:01:36]} 10. d4 {[%clk 0:02:34]}  Bb4 {[%clk 0:01:33]} 11. Bg5 {[%clk 0:02:31]}  Nf6 {[%clk 0:01:26]} 12. O-O-O {[%clk 0:02:30]}  Bxc3 {[%clk 0:01:25]} 13. bxc3 {[%clk 0:02:31]}  Nbd7 {[%clk 0:01:24]} 14. d5 {[%clk 0:02:29]}  Qe7 {[%clk 0:01:20]} 15. Kb1 {[%clk 0:02:13]}  O-O-O {[%clk 0:01:12]} 16. Nd4 {[%clk 0:02:00]}  Bg6 {[%clk 0:01:02]} 17. dxe6 {[%clk 0:01:55]}  Nb6 {[%clk 0:00:58]} 18. Bb3 {[%clk 0:01:51]}  Rhe8 {[%clk 0:00:51]} 19. Qb5 {[%clk 0:01:39]}  h6 {[%clk 0:00:32]} 20. Bc1 {[%clk 0:01:32]}  Ne4 {[%clk 0:00:30]} 21. Bb2 {[%clk 0:01:30]}  Nxf2 {[%clk 0:00:27]} 22. Rde1 {[%clk 0:01:09]}  Nxh1 {[%clk 0:00:25]} 23. Rxh1 {[%clk 0:01:10]}  fxe6 {[%clk 0:00:23]} 24. Bxe6+ {[%clk 0:00:59]}  Kb8 {[%clk 0:00:22]} 25. a4 {[%clk 0:01:00]}  Rxd4 {[%clk 0:00:18]} 26. cxd4 {[%clk 0:00:57]}  Qxe6 {[%clk 0:00:18]} 27. a5 {[%clk 0:00:58]}  Nc4 {[%clk 0:00:15]} 28. Bc1 {[%clk 0:00:50]}  Qe4 {[%clk 0:00:11]} 29. Rd1 {[%clk 0:00:46]}  Qxc2+ {[%clk 0:00:11]} 30. Ka1 {[%clk 0:00:43]}  Qxd1 {[%clk 0:00:12]} 31. Qxc4 {[%clk 0:00:38]}  Qc2 {[%clk 0:00:12]} 0-1


[Site "https://www.chess.com"]

[Event "Titled Tuesday Blitz March 15 Early 2022"]
[White "Thavandiran, Shiyam"]
[Black "Koellner, Ruben Gideon"]
[WhiteFideId "2605058"]
[BlackFideId "12993093"]
[WhiteElo "2357"]
[BlackElo "2449"]
[Result "0-1"]
[Round "06"]
[TimeControl "180+1"]
[Date "2022.03.15"]
[WhiteClock "0:00:18"]
[BlackClock "0:01:06"]

1. e4 {[%clk 0:02:52]}  d6 {[%clk 0:03:00]} 2. d4 {[%clk 0:02:52]}  Nf6 {[%clk 0:02:59]} 3. Nc3 {[%clk 0:02:52]}  e5 {[%clk 0:03:00]} 4. Nf3 {[%clk 0:02:50]}  Nbd7 {[%clk 0:02:59]} 5. Bc4 {[%clk 0:02:50]}  Be7 {[%clk 0:02:59]} 6. O-O {[%clk 0:02:50]}  c6 {[%clk 0:02:59]} 7. a4 {[%clk 0:02:50]}  h6 {[%clk 0:02:59]} 8. Re1 {[%clk 0:02:49]}  Qc7 {[%clk 0:03:00]} 9. b3 {[%clk 0:02:36]}  Nf8 {[%clk 0:02:57]} 10. Bb2 {[%clk 0:02:35]}  Ng6 {[%clk 0:02:57]} 11. h3 {[%clk 0:02:34]}  O-O {[%clk 0:02:56]} 12. Qd2 {[%clk 0:02:32]}  b6 {[%clk 0:02:53]} 13. d5 {[%clk 0:02:33]}  Bb7 {[%clk 0:02:47]} 14. dxc6 {[%clk 0:02:33]}  Bxc6 {[%clk 0:02:48]} 15. Ba3 {[%clk 0:02:11]}  Rfd8 {[%clk 0:02:47]} 16. Rad1 {[%clk 0:02:07]}  a6 {[%clk 0:02:44]} 17. Bb2 {[%clk 0:01:10]}  Rdb8 {[%clk 0:02:30]} 18. Nd5 {[%clk 0:01:00]}  Nxd5 {[%clk 0:02:21]} 19. Bxd5 {[%clk 0:01:00]}  Bxd5 {[%clk 0:02:21]} 20. Qxd5 {[%clk 0:00:54]}  Qxc2 {[%clk 0:02:07]} 21. Rd2 {[%clk 0:00:54]}  Qc7 {[%clk 0:02:06]} 22. Rc1 {[%clk 0:00:54]}  Qb7 {[%clk 0:02:03]} 23. Qxb7 {[%clk 0:00:48]}  Rxb7 {[%clk 0:02:04]} 24. Rdc2 {[%clk 0:00:48]}  Bf8 {[%clk 0:01:57]} 25. Rc7 {[%clk 0:00:40]}  Raa7 {[%clk 0:01:46]} 26. Rc8 {[%clk 0:00:39]}  Nf4 {[%clk 0:01:43]} 27. Ba3 {[%clk 0:00:37]}  Ne2+ {[%clk 0:01:36]} 28. Kf1 {[%clk 0:00:37]}  Nxc1 {[%clk 0:01:36]} 29. Bxd6 {[%clk 0:00:38]}  Nxb3 {[%clk 0:01:33]} 30. Rxf8+ {[%clk 0:00:26]}  Kh7 {[%clk 0:01:33]} 31. Bxe5 {[%clk 0:00:26]}  Re7 {[%clk 0:01:25]} 32. Bb2 {[%clk 0:00:23]}  Rxe4 {[%clk 0:01:20]} 33. g4 {[%clk 0:00:23]}  Rd7 {[%clk 0:01:14]} 34. g5 {[%clk 0:00:20]}  Nd2+ {[%clk 0:01:14]} 35. Nxd2 {[%clk 0:00:20]}  Rxd2 {[%clk 0:01:15]} 36. Bc3 {[%clk 0:00:18]}  Rd3 {[%clk 0:01:06]} 0-1


[Site "https://www.chess.com"]